bitfinex/quotes_BTCUSD_20250314
["timestamp","ask_amount","ask_price","bid_price","bid_amount"]
[1741954288832,0.011988,83410.0,83405.0,0.25178]
[1741954289039,0.239786,83408.0,83406.0,0.23979]
[1741954289285,0.239786,83408.0,83405.0,0.239793]
[1741954289774,0.239775,83412.0,83408.0,0.239782]
[1741954289919,0.251767,83411.0,83405.0,0.239793]
[1741954290124,0.239793,83406.0,83402.0,0.2398]
[1741954290369,0.239793,83406.0,83403.0,0.239797]
[1741954290572,0.239771,83413.0,83407.0,0.239785]
[1741954290777,0.011988,83413.0,83408.0,0.239784]
[1741954290973,0.239776,83412.0,83409.0,0.239781]
[1741954291183,0.2913267,83412.0,83409.0,0.239781]
[1741954291579,0.239776,83411.0,83408.0,0.239782]
[1741954292033,0.239782,83409.0,83405.0,0.239788]
[1741954292251,0.239781,83410.0,83405.0,0.011989]
[1741954292456,0.239784,83409.0,83406.0,0.239788]
[1741954292688,0.32286787,83408.0,83406.0,0.239788]
[1741954293131,0.32286787,83408.0,83405.0,0.251777]
[1741954293569,0.08308287,83408.0,83407.0,0.239788]
[1741954293793,0.01880418,83409.0,83407.0,0.239788]
[1741954294020,0.25858618,83409.0,83407.0,0.01052681]
[1741954294256,0.239785,83408.0,83407.0,0.01052681]
[1741954294461,0.251798,83400.0,83393.0,0.011991]
[1741954294668,0.251798,83400.0,83395.0,0.2401584]
[1741954294904,0.251798,83400.0,83396.0,0.239817]
[1741954295072,0.239808,83400.0,83398.0,0.239813]
[1741954295278,0.33573723,83400.0,83397.0,0.239816]
[1741954295481,0.33573723,83400.0,83396.0,0.239819]
[1741954295870,0.34772723,83400.0,83396.0,0.239819]
[1741954296076,0.34772723,83400.0,83395.0,0.0003384]
[1741954296274,0.27099033,83400.0,83399.0,0.4184]
[1741954296678,0.27099033,83400.0,83399.0,0.4194]
[1741954296863,0.01919233,83400.0,83399.0,0.671201]
[1741954297218,0.3,83406.0,83405.0,0.251782]
[1741954297419,0.0795,83414.0,83411.0,0.239776]
[1741954297717,0.011988,83416.0,83411.0,0.011988]
[1741954297844,0.239765,83415.0,83413.0,0.239769]
[1741954298082,0.25868222,83416.0,83414.0,0.239767]
[1741954298283,0.01880497,83415.0,83412.0,0.251759]
[1741954298497,0.01880497,83415.0,83414.0,0.251755]
[1741954299111,0.01880497,83415.0,83413.0,0.23977]
[1741954299893,0.01880497,83415.0,83412.0,0.251761]
[1741954300144,0.01880497,83415.0,83414.0,0.011988]
[1741954300348,0.01880497,83415.0,83414.0,0.251755]
[1741954301694,0.239772,83413.0,83409.0,0.239782]
[1741954302121,0.29273052,83413.0,83409.0,0.239782]
[1741954302338,0.239773,83412.0,83408.0,0.251768]
[1741954302776,0.239776,83411.0,83408.0,0.251768]
[1741954302994,0.23978,83410.0,83407.0,0.239787]
[1741954303617,0.23978,83410.0,83408.0,0.239784]
[1741954303817,0.239784,83409.0,83406.0,0.251779]
[1741954304015,0.1528509,83410.0,83406.0,0.011989]
[1741954304222,0.239776,83412.0,83407.0,0.239787]
[1741954304485,0.239776,83412.0,83408.0,0.239784]
[1741954304885,0.239777,83411.0,83407.0,0.239787]
[1741954305132,0.239777,83411.0,83408.0,0.239784]
[1741954305328,0.239779,83410.0,83406.0,0.011989]
[1741954305500,0.239779,83410.0,83406.0,0.251779]
[1741954306475,0.239779,83410.0,83406.0,0.23979]
[1741954306615,0.239779,83410.0,83405.0,0.239793]
[1741954306819,0.239779,83410.0,83406.0,0.239788]
[1741954307303,0.239779,83410.0,83407.0,0.239787]
[1741954307521,0.01880497,83415.0,83414.0,0.251755]
[1741954308594,0.01880497,83415.0,83414.0,0.26225922]
[1741954309982,0.25856997,83415.0,83414.0,0.01050422]
[1741954310398,0.25856997,83415.0,83411.0,0.251763]
[1741954310626,0.25856997,83415.0,83414.0,0.0105016]
[1741954311097,0.01880497,83415.0,83413.0,0.23977]
[1741954311470,0.01880497,83415.0,83414.0,0.01050189]
[1741954312144,0.25856997,83415.0,83414.0,0.01050189]
[1741954312508,0.25856997,83415.0,83411.0,0.251763]
[1741954312710,0.13053319,83415.0,83413.0,0.23977]
[1741954312890,0.13053319,83415.0,83414.0,0.01050187]
[1741954313116,0.01880497,83415.0,83414.0,0.01050187]
[1741954313325,0.25856997,83415.0,83414.0,0.01050187]
[1741954313526,0.239775,83412.0,83409.0,0.239781]
[1741954313723,0.239775,83412.0,83410.0,0.01051594]
[1741954313937,0.239776,83411.0,83410.0,0.01051594]
[1741954314369,0.11907442,83412.0,83409.0,0.239782]
[1741954314565,0.239768,83414.0,83410.0,0.01051595]
[1741954314786,0.25856997,83415.0,83411.0,0.239774]
[1741954314991,0.239776,83411.0,83410.0,0.01051595]
[1741954315195,0.551777,83407.0,83390.0,0.0808]
[1741954315523,0.551777,83407.0,83397.0,0.239814]
[1741954315854,0.551777,83407.0,83396.0,0.239819]
[1741954316561,0.551777,83407.0,83397.0,0.239815]
[1741954316766,0.5759839,83407.0,83397.0,0.239815]
[1741954316930,0.5759839,83407.0,83399.0,0.23981]
[1741954317083,0.5759839,83407.0,83401.0,0.239804]
[1741954317283,0.011988,83413.0,83407.0,0.011989]
[1741954317528,0.311988,83413.0,83408.0,0.011989]
[1741954317726,0.239765,83415.0,83410.0,0.011988]
[1741954317922,0.001,83415.0,83413.0,0.251758]
[1741954318215,0.01962314,83416.0,83407.0,0.251774]
[1741954318216,0.239779,83411.0,83407.0,0.251774]
[1741954318367,0.02403509,83411.0,83408.0,0.239785]
[1741954318759,0.011988,83413.0,83408.0,0.239785]
[1741954318760,0.239772,83413.0,83411.0,0.239776]
[1741954318957,0.03079231,83415.0,83411.0,0.239776]
[1741954318958,0.239767,83414.0,83411.0,0.239776]
[1741954319373,0.25176,83413.0,83408.0,0.251772]
[1741954319582,0.239776,83412.0,83408.0,0.251772]
[1741954319791,0.239788,83407.0,83406.0,0.0003382]
[1741954319997,0.251777,83407.0,83406.0,0.0003382]
[1741954320223,0.03179231,83415.0,83410.0,0.239778]
[1741954320431,0.03179231,83415.0,83411.0,0.239775]
[1741954320638,0.03179231,83415.0,83409.0,0.25177]
[1741954320639,0.27155831,83415.0,83409.0,0.25177]
[1741954320889,0.239774,83412.0,83409.0,0.239781]
[1741954321300,0.251756,83414.0,83410.0,0.239779]
[1741954321652,0.01880431,83415.0,83414.0,0.011988]
[1741954321874,0.01880431,83415.0,83414.0,0.251755]
[1741954323503,0.239757,83418.0,83415.0,0.52095969]
[1741954323636,0.239759,83417.0,83415.0,0.28119569]
[1741954323877,0.251745,83418.0,83416.0,0.01399393]
[1741954324079,0.239758,83418.0,83416.0,0.01399393]
[1741954324286,0.01930355,83418.0,83416.0,0.01399393]
[1741954324517,0.3,83420.0,83416.0,0.01399393]
[1741954324721,0.3,83420.0,83417.0,0.239758]
[1741954324949,0.3,83420.0,83418.0,0.25374028]
[1741954325175,0.3,83420.0,83419.0,0.239753]
[1741954325373,0.3,83422.0,83419.0,0.239753]
[1741954325575,0.3,83422.0,83419.0,0.25373271]
[1741954325959,0.3,83422.0,83420.0,0.23975]
[1741954326167,0.3,83422.0,83419.0,0.01397971]
[1741954326371,0.31919504,83422.0,83421.0,0.01397049]
[1741954326718,0.31919504,83422.0,83420.0,0.0139751]
[1741954326993,0.5777425,83422.0,83421.0,0.01397049]
[1741954327337,0.0379985,83422.0,83421.0,0.251734]
[1741954327529,0.0379985,83422.0,83421.0,0.26570449]
[1741954328592,0.0389985,83422.0,83421.0,0.26570449]
[1741954328803,0.01880346,83422.0,83421.0,0.26570449]
[1741954329409,0.01980346,83422.0,83421.0,0.26570449]
[1741954330105,0.23969,83442.0,83438.0,0.239697]
[1741954330381,0.23968,83445.0,83439.0,0.011984]
[1741954330629,0.03802323,83442.0,83439.0,0.02609887]
[1741954330929,0.01880046,83442.0,83441.0,0.23969]
[1741954331182,0.03791084,83442.0,83439.0,0.25380987]
[1741954331440,0.25848746,83442.0,83441.0,0.01410561]
[1741954331693,0.3,83441.0,83440.0,0.02609422]
[1741954331929,0.3,83441.0,83440.0,0.251677]
[1741954332835,0.03812981,83442.0,83441.0,0.251674]
[1741954333201,0.01932935,83442.0,83441.0,0.251674]
[1741954333436,0.3,83444.0,83443.0,0.239684]
[1741954333643,0.3,83444.0,83441.0,0.251674]
[1741954333847,0.3,83445.0,83441.0,0.251674]
[1741954334053,0.3,83445.0,83442.0,0.239686]
[1741954334458,0.239684,83444.0,83441.0,0.23969]
[1741954335158,0.54962183,83445.0,83441.0,0.23969]
[1741954335344,0.239685,83443.0,83441.0,0.23969]
[1741954335731,0.239684,83444.0,83441.0,0.23969]
[1741954336611,0.01819066,83445.0,83443.0,0.239684]
[1741954336819,0.01819066,83445.0,83444.0,0.251665]
[1741954337021,0.0003386,83448.0,83444.0,0.251665]
[1741954337022,0.0003386,83448.0,83447.0,0.239673]
[1741954337256,0.0003386,83448.0,83443.0,0.011984]
[1741954337637,0.239675,83447.0,83443.0,0.251668]
[1741954338010,0.239675,83447.0,83442.0,0.251669]
[1741954338221,0.011983,83447.0,83442.0,0.239685]
[1741954338653,0.251661,83447.0,83443.0,0.239684]
[1741954339001,0.251661,83447.0,83443.0,0.25377877]
[1741954339670,0.239678,83445.0,83443.0,0.01409477]
[1741954340067,0.239676,83446.0,83443.0,0.25377877]
[1741954340546,0.25747429,83446.0,83443.0,0.25377877]
[1741954341436,0.01779829,83446.0,83445.0,0.239678]
[1741954341851,0.0003386,83448.0,83447.0,0.251656]
[1741954342065,0.0003386,83448.0,83447.0,0.299656]
[1741954342274,0.0003386,83448.0,83447.0,0.31365006]
[1741954343230,0.01913408,83448.0,83447.0,0.31365006]
[1741954345108,0.0003386,83448.0,83447.0,0.82819091]
[1741954346656,0.0003386,83448.0,83447.0,0.96295091]
[1741954347587,0.0003386,83448.0,83447.0,0.82819091]
[1741954347793,6e-07,83448.0,83447.0,1.65825091]
[1741954347994,6e-07,83448.0,83447.0,1.66125091]
[1741954348399,6e-07,83448.0,83447.0,1.52649091]
[1741954348579,6e-07,83448.0,83447.0,1.66125091]
[1741954348766,6e-07,83448.0,83447.0,1.52349091]
[1741954348961,6e-07,83448.0,83447.0,1.65821091]
[1741954349166,6e-07,83448.0,83447.0,1.66121091]
[1741954349996,6e-07,83448.0,83447.0,1.66421091]
[1741954350203,6e-07,83448.0,83447.0,1.66121091]
[1741954350915,6e-07,83448.0,83447.0,1.65821091]
[1741954351188,6e-07,83448.0,83447.0,1.53349091]
[1741954351369,6e-07,83448.0,83447.0,1.66821091]
[1741954351575,6e-07,83448.0,83447.0,1.53349091]
[1741954351772,6e-07,83448.0,83447.0,1.66821091]
[1741954352179,6e-07,83448.0,83447.0,1.53349091]
[1741954352379,6e-07,83448.0,83447.0,1.66821091]
[1741954354071,6e-07,83448.0,83447.0,1.664708]
[1741954354562,6e-07,83448.0,83447.0,1.529988]
[1741954354767,6e-07,83448.0,83447.0,1.664708]
[1741954357585,6e-07,83448.0,83447.0,1.529988]
[1741954357792,6e-07,83448.0,83447.0,1.664708]
[1741954358565,6e-07,83448.0,83447.0,1.529988]
[1741954358804,6e-07,83448.0,83447.0,1.664708]
[1741954360019,6e-07,83448.0,83447.0,1.6650466]
[1741954366497,0.01879333,83453.0,83452.0,0.011982]
[1741954366702,0.01879333,83453.0,83452.0,0.26737885]
[1741954366932,0.01879333,83453.0,83452.0,0.27664596]
[1741954367905,0.01879333,83453.0,83452.0,0.28364596]
[1741954368402,0.01879333,83453.0,83452.0,0.41832596]
[1741954372396,0.01896263,83453.0,83452.0,1.53102536]
[1741954376425,0.01896263,83453.0,83452.0,1.39634536]
[1741954376598,0.01896263,83453.0,83452.0,1.53102536]
[1741954381418,0.01896263,83453.0,83452.0,1.39634536]
[1741954381626,0.01896263,83453.0,83452.0,1.38180451]
[1741954384052,0.01896263,83453.0,83452.0,0.68650451]
[1741954385259,0.01896263,83453.0,83452.0,0.82724536]
[1741954386902,6.3e-07,83453.0,83452.0,0.82724536]
[1741954389884,0.0008,83469.0,83468.0,0.333092]
[1741954390085,1e-06,83469.0,83468.0,1.64391162]
[1741954390289,1e-06,83469.0,83468.0,1.65432267]
[1741954390547,1e-06,83469.0,83468.0,1.65779286]
[1741954390731,1e-06,83469.0,83468.0,1.65432133]
[1741954391510,1e-06,83469.0,83468.0,1.65779123]
[1741954391702,1e-06,83469.0,83468.0,1.65432133]
[1741954392293,1e-06,83469.0,83468.0,1.65732133]
[1741954392829,1e-06,83469.0,83468.0,1.66079123]
[1741954393034,1e-06,83469.0,83468.0,1.68462288]
[1741954393617,1e-06,83469.0,83468.0,1.70295549]
[1741954394025,1e-06,83469.0,83468.0,1.70595549]
[1741954395727,0.01878738,83473.0,83472.0,0.01198]
[1741954395956,0.01878738,83473.0,83472.0,0.251581]
[1741954396149,0.01878738,83473.0,83472.0,0.26197175]
[1741954397564,0.01878738,83473.0,83472.0,0.26697175]
[1741954397777,0.01878738,83473.0,83472.0,0.27043533]
[1741954397984,0.01878738,83473.0,83472.0,0.26696961]
[1741954398188,0.01878738,83473.0,83472.0,0.26496961]
[1741954398914,0.01878738,83473.0,83472.0,0.28251046]
[1741954399126,0.01878738,83473.0,83472.0,0.32781046]
[1741954399533,3.8e-07,83473.0,83472.0,0.32781046]
[1741954399817,0.0001692,83490.0,83479.0,0.25156]
[1741954400012,0.0001692,83490.0,83479.0,0.3862]
[1741954400305,0.0001692,83490.0,83479.0,0.41456126]
[1741954401320,0.0001692,83490.0,83479.0,0.41110616]
[1741954401670,0.0001692,83490.0,83479.0,1.52380393]
[1741954402073,0.0001692,83490.0,83479.0,1.52580393]
[1741954402299,0.0001692,83490.0,83479.0,1.52780393]
[1741954402917,0.01878623,83482.0,83479.0,1.52780393]
[1741954403234,0.01878623,83482.0,83479.0,1.60990393]
[1741954403428,0.01878623,83482.0,83479.0,1.61335903]
[1741954403660,0.01878623,83482.0,83479.0,1.60990393]
[1741954404189,0.01878623,83482.0,83479.0,1.61335903]
[1741954404389,0.01878623,83482.0,83479.0,1.60935903]
[1741954404592,8.3e-07,83484.0,83482.0,0.41739777]
[1741954404762,8.3e-07,83484.0,83483.0,0.2672854]
[1741954404947,8.3e-07,83484.0,83483.0,0.27988659]
[1741954405921,8.3e-07,83484.0,83483.0,0.35868659]
[1741954406337,3e-08,83490.0,83489.0,0.251529]
[1741954406515,3e-08,83490.0,83489.0,1.50246762]
[1741954406740,3e-08,83490.0,83489.0,1.51623762]
[1741954407431,0.0126096,83519.0,83493.0,0.26605885]
[1741954407432,4.3e-07,83496.0,83493.0,0.26605885]
[1741954407631,4.3e-07,83496.0,83495.0,0.33367585]
[1741954407845,4.3e-07,83496.0,83495.0,0.34565185]
[1741954408040,4.3e-07,83496.0,83495.0,0.35938771]
[1741954408273,4.3e-07,83496.0,83495.0,1.47208548]
[1741954409183,4.3e-07,83496.0,83495.0,1.47608548]
[1741954409473,4.3e-07,83496.0,83495.0,1.52498548]
[1741954409673,4.3e-07,83496.0,83495.0,1.52098548]
[1741954410432,4.2e-07,83509.0,83505.0,0.02651585]
[1741954410652,4.2e-07,83509.0,83508.0,0.26601285]
[1741954410853,0.0126096,83519.0,83518.0,0.251442]
[1741954411333,0.0126096,83519.0,83518.0,0.2650701]
[1741954414153,0.0126096,83519.0,83518.0,1.39230872]
[1741954415324,0.0126096,83519.0,83518.0,1.39330872]
[1741954415540,0.0126096,83519.0,83518.0,1.39430872]
[1741954420785,0.0126096,83519.0,83518.0,1.47030872]
[1741954421206,0.0127788,83519.0,83518.0,1.47030872]
[1741954421473,0.0127788,83519.0,83518.0,1.46930872]
[1741954421845,0.0127788,83519.0,83518.0,1.47030872]
[1741954422220,0.0127788,83519.0,83518.0,1.47230872]
[1741954423384,0.0127788,83519.0,83518.0,1.47030872]
[1741954423616,0.0127788,83519.0,83518.0,1.46830872]
[1741954424289,0.0127788,83519.0,83518.0,1.47130872]
[1741954425019,0.3,83540.0,83537.0,0.239414]
[1741954425237,0.3,83540.0,83538.0,0.239409]
[1741954425471,0.3,83540.0,83539.0,0.239409]
[1741954425698,0.239409,83539.0,83538.0,0.43092529]
[1741954425947,0.331379,83539.0,83538.0,0.41739777]
[1741954426969,0.34799541,83539.0,83538.0,0.41739777]
[1741954427656,0.36677271,83539.0,83538.0,0.41739777]
[1741954428306,0.41237271,83539.0,83538.0,0.41739777]
[1741954428730,0.41237271,83539.0,83538.0,0.42754341]
[1741954429980,0.41237271,83539.0,83538.0,0.40554341]
[1741954430480,0.71237271,83539.0,83538.0,0.40554341]
[1741954430976,0.71237271,83539.0,83538.0,0.01352752]
[1741954431169,0.71237271,83539.0,83538.0,0.01014564]
[1741954431681,0.539413,83538.0,83535.0,0.23942]
[1741954431942,0.03539371,83539.0,83538.0,0.251382]
[1741954432193,0.0187773,83539.0,83538.0,0.251382]
[1741954432727,0.0189464,83539.0,83538.0,0.251382]
[1741954432931,0.0189464,83539.0,83538.0,0.249382]
[1741954433832,0.0001691,83539.0,83538.0,1.34007977]
[1741954434036,0.0001691,83539.0,83538.0,1.35462062]
[1741954435206,0.0011691,83539.0,83538.0,1.35662062]
[1741954435422,0.01237854,83539.0,83538.0,1.35662062]
[1741954435639,0.03379741,83539.0,83538.0,1.35662062]
[1741954436103,0.05257071,83539.0,83538.0,1.35862062]
[1741954438448,0.03015184,83539.0,83538.0,1.35862062]
[1741954438701,8.4e-07,83539.0,83538.0,1.35862062]
[1741954438919,0.01681519,83554.0,83548.0,0.251352]
[1741954439120,0.01877271,83552.0,83548.0,0.251352]
[1741954440146,7.1e-07,83552.0,83551.0,0.26588285]
[1741954440357,6.8e-07,83564.0,83563.0,0.10350785]
[1741954440555,6.8e-07,83564.0,83563.0,1.48174143]
[1741954440759,6.8e-07,83564.0,83563.0,1.48054491]
[1741954441211,7.1e-07,83590.0,83584.0,0.011964]
[1741954441394,7.1e-07,83590.0,83589.0,0.15050385]
[1741954441591,7.1e-07,83590.0,83589.0,0.13973676]
[1741954441871,7.1e-07,83590.0,83589.0,1.09069706]
[1741954442412,0.25122671,83590.0,83589.0,1.09069706]
[1741954442684,0.23926371,83590.0,83589.0,1.09069706]
[1741954442817,7.1e-07,83590.0,83589.0,1.09069706]
[1741954443278,0.02234002,83590.0,83589.0,1.10184057]
[1741954443914,0.02250912,83590.0,83589.0,1.10184057]
[1741954444114,0.00016981,83590.0,83589.0,1.10184057]
[1741954444371,0.00016981,83590.0,83589.0,0.40654057]
[1741954444372,0.01213281,83590.0,83589.0,0.40654057]
[1741954444807,0.31213281,83590.0,83589.0,0.40654057]
[1741954446434,0.00016981,83590.0,83589.0,0.65776857]
[1741954448920,0.00016981,83590.0,83589.0,0.66076857]
[1741954449480,0.00016981,83590.0,83589.0,0.67830942]
[1741954450093,0.00016981,83590.0,83589.0,0.67530942]
[1741954451459,0.00016981,83590.0,83589.0,0.68130942]
[1741954451663,0.00016981,83590.0,83589.0,0.67830942]
[1741954451984,0.00016981,83590.0,83589.0,0.65630942]
[1741954452185,0.00016981,83590.0,83589.0,0.65030942]
[1741954452350,0.00016981,83590.0,83589.0,0.65630942]
[1741954452551,0.00016981,83590.0,83589.0,0.79766942]
[1741954453616,0.00016981,83590.0,83589.0,0.64776857]
[1741954453790,0.00016981,83590.0,83589.0,0.39654057]
[1741954454599,0.00016981,83590.0,83589.0,0.39054057]
[1741954454798,0.00016981,83590.0,83589.0,0.39650357]
[1741954454976,0.00016981,83590.0,83589.0,0.40050357]
[1741954455181,0.00016981,83590.0,83589.0,0.64376857]
[1741954455376,0.00016981,83590.0,83589.0,0.39254057]
[1741954455709,0.00016981,83590.0,83589.0,0.64376857]
[1741954456425,0.00016981,83590.0,83589.0,0.64410657]
[1741954456630,0.00016981,83590.0,83589.0,0.64010657]
[1741954457495,0.00016981,83590.0,83589.0,0.63610657]
[1741954457692,0.01893303,83590.0,83589.0,0.63810657]
[1741954458064,0.01893303,83590.0,83589.0,0.64010657]
[1741954458654,0.01893303,83590.0,83589.0,1.33540657]
[1741954459758,0.01893303,83590.0,83589.0,1.33340657]
[1741954459876,0.01893303,83590.0,83589.0,1.33740657]
[1741954460583,0.01893303,83590.0,83589.0,0.64010657]
[1741954460776,0.01893303,83590.0,83589.0,0.64410657]
[1741954461498,0.01893303,83590.0,83589.0,1.33140657]
[1741954461922,0.01893303,83590.0,83589.0,1.33740657]
[1741954462131,0.01893303,83590.0,83589.0,1.33440657]
[1741954462324,0.01893303,83590.0,83589.0,1.33140657]
[1741954462732,0.01893303,83590.0,83589.0,1.33440657]
[1741954463134,0.01893303,83590.0,83589.0,1.33140657]
[1741954463947,0.01893303,83590.0,83589.0,1.33440657]
[1741954464143,0.01893303,83590.0,83589.0,1.30940657]
[1741954464599,0.01893303,83590.0,83589.0,1.31340657]
[1741954464761,0.01893303,83590.0,83589.0,1.31740657]
[1741954465362,0.01893303,83590.0,83589.0,1.31340657]
[1741954466318,0.01893303,83590.0,83589.0,1.40914742]
[1741954466620,0.00016981,83590.0,83589.0,1.54446742]
[1741954467397,0.00016981,83590.0,83589.0,1.54846742]
[1741954467596,0.00016981,83590.0,83589.0,1.41314742]
[1741954467804,0.01135777,83590.0,83589.0,1.41314742]
[1741954468004,0.01135777,83590.0,83589.0,1.54878742]
[1741954469335,7.7e-07,83590.0,83589.0,1.41314742]
[1741954469562,7.7e-07,83590.0,83589.0,1.59580742]
[1741954470161,0.0127789,83603.0,83600.0,0.30769329]
[1741954470347,0.01876094,83612.0,83611.0,0.251162]
[1741954470545,0.01876094,83612.0,83611.0,1.26869614]
[1741954470925,0.01876094,83612.0,83611.0,1.2797244]
[1741954471340,0.01876094,83612.0,83611.0,1.26518355]
[1741954471732,0.01876094,83612.0,83611.0,0.56988355]
[1741954472546,0.01876094,83612.0,83611.0,0.57388355]
[1741954472971,0.01876094,83612.0,83611.0,0.57188355]
[1741954473176,0.01876094,83612.0,83611.0,0.31872155]
[1741954473177,0.25796094,83612.0,83611.0,0.31872155]
[1741954473385,0.01876094,83612.0,83611.0,0.31872155]
[1741954473545,0.25796094,83612.0,83611.0,0.31872155]
[1741954473943,0.01876094,83612.0,83611.0,0.31872155]
[1741954474399,0.01876094,83612.0,83611.0,0.32072155]
[1741954474543,0.01876094,83612.0,83611.0,0.31872155]
[1741954474752,0.25796094,83612.0,83611.0,0.31872155]
[1741954475039,0.26992094,83612.0,83611.0,0.32072155]
[1741954475387,0.26992094,83612.0,83611.0,0.31872155]
[1741954476173,0.56992094,83612.0,83611.0,0.31872155]
[1741954476372,0.63436,83612.0,83611.0,0.01102826]
[1741954476594,0.01196,83607.0,83598.0,0.30769329]
[1741954476793,0.3,83603.0,83598.0,0.30769329]
[1741954476994,0.251195,83600.0,83599.0,0.30769329]
[1741954477192,0.677395,83600.0,83599.0,0.30769329]
[1741954477784,0.551223,83591.0,83590.0,0.30769329]
[1741954477990,0.3,83591.0,83590.0,0.30769329]
[1741954478930,0.53926,83591.0,83590.0,0.30769329]
[1741954479338,0.55802437,83591.0,83590.0,0.31069329]
[1741954479774,0.55802437,83591.0,83590.0,0.31269329]
[1741954480065,0.31876437,83591.0,83590.0,0.31269329]
[1741954480279,0.31876437,83591.0,83590.0,0.31069329]
[1741954480470,0.31876437,83591.0,83590.0,0.54995629]
[1741954480677,0.31876437,83591.0,83590.0,0.55991929]
[1741954481077,0.31876437,83591.0,83590.0,0.56191929]
[1741954481440,0.31876437,83591.0,83590.0,0.55991929]
[1741954481838,0.31876437,83591.0,83590.0,0.56191929]
[1741954482045,0.31876437,83591.0,83590.0,0.54995629]
[1741954482778,0.31876437,83591.0,83590.0,0.31069329]
[1741954483010,0.55802437,83591.0,83590.0,0.31069329]
[1741954483282,0.56998737,83591.0,83590.0,0.31069329]
[1741954484055,0.56998737,83591.0,83590.0,0.30769329]
[1741954484255,0.75151814,83590.0,83589.0,0.000338]
[1741954484452,0.551226,83590.0,83589.0,0.000338]
[1741954485477,0.552226,83590.0,83589.0,0.000338]
[1741954485681,0.43684,83590.0,83589.0,0.000338]
[1741954485892,0.43684,83590.0,83589.0,0.239603]
[1741954486093,0.001,83590.0,83589.0,0.000338]
[1741954486297,0.240263,83590.0,83589.0,0.0114729]
[1741954486473,0.252226,83590.0,83589.0,0.000338]
[1741954486818,0.252226,83590.0,83589.0,0.30803129]
[1741954487155,0.254226,83590.0,83589.0,0.31916619]
[1741954487358,0.253226,83590.0,83589.0,0.31916619]
[1741954487600,0.3,83593.0,83589.0,0.31916619]
[1741954487834,0.551219,83593.0,83589.0,0.31916619]
[1741954488035,0.26998381,83593.0,83589.0,0.55843119]
[1741954488234,0.001,83590.0,83589.0,0.55843119]
[1741954488753,0.001,83590.0,83589.0,0.57039419]
[1741954488991,0.31876481,83593.0,83590.0,0.239261]
[1741954489202,0.31876481,83593.0,83592.0,0.239257]
[1741954489203,0.01876481,83593.0,83592.0,0.239257]
[1741954489413,0.01876481,83593.0,83592.0,0.250219]
[1741954489607,0.01876481,83593.0,83592.0,0.01112433]
[1741954489951,0.01876481,83593.0,83590.0,0.239262]
[1741954490161,0.01976481,83593.0,83591.0,0.01112892]
[1741954490368,0.011959,83618.0,83610.0,0.238205]
[1741954490570,0.011959,83618.0,83610.0,0.239203]
[1741954490571,0.239194,83614.0,83610.0,0.239203]
[1741954490912,0.01892869,83612.0,83611.0,0.01140879]
[1741954491077,0.01892869,83612.0,83611.0,0.25061079]
[1741954491262,0.01892869,83612.0,83611.0,0.26257079]
[1741954492281,0.02092869,83612.0,83611.0,0.67997079]
[1741954492544,6.9e-07,83612.0,83611.0,1.51791164]
[1741954492775,0.05,83636.0,83611.0,1.51791164]
[1741954492776,0.239149,83630.0,83622.0,0.011958]
[1741954492996,0.02077474,83629.0,83625.0,0.011958]
[1741954493199,0.20029214,83630.0,83626.0,0.00950931]
[1741954493398,0.20029214,83630.0,83628.0,0.239153]
[1741954493602,0.251114,83627.0,83626.0,0.00950931]
[1741954493730,0.239153,83629.0,83625.0,0.239162]
[1741954493930,0.539163,83625.0,83623.0,0.4174]
[1741954494337,0.3,83625.0,83623.0,0.4174]
[1741954494760,0.539163,83625.0,83623.0,0.4174]
[1741954494984,0.011958,83624.0,83623.0,0.4174]
[1741954496871,0.539163,83625.0,83623.0,0.4174]
[1741954497292,0.3,83628.0,83625.0,0.239162]
[1741954497407,0.3,83628.0,83626.0,0.23916]
[1741954497826,0.3,83628.0,83627.0,0.011957]
[1741954498251,0.3,83633.0,83627.0,0.011957]
[1741954498409,0.3,83633.0,83630.0,0.239145]
[1741954498624,0.3,83631.0,83627.0,0.239155]
[1741954499003,0.3,83631.0,83628.0,0.25111]
[1741954499138,0.32132908,83631.0,83629.0,0.23915]
[1741954499562,0.32132908,83631.0,83629.0,0.251107]
[1741954499761,0.04008513,83631.0,83629.0,0.251107]
[1741954499966,0.04008513,83631.0,83630.0,0.011957]
[1741954500159,0.04008513,83631.0,83629.0,0.251107]
[1741954500362,0.04008513,83631.0,83628.0,0.25111]
[1741954500562,0.3,83628.0,83627.0,0.001]
[1741954500768,0.3,83628.0,83627.0,0.239157]
[1741954500943,0.3,83628.0,83627.0,0.251114]
[1741954501517,0.3,83628.0,83627.0,0.240114]
[1741954501902,0.04008513,83631.0,83629.0,0.239149]
[1741954502102,0.01875605,83631.0,83630.0,0.251105]
[1741954502539,0.0397931,83631.0,83630.0,0.251105]
[1741954502712,0.01875605,83631.0,83629.0,0.239149]
[1741954503081,0.03947596,83631.0,83630.0,0.239148]
[1741954503298,0.33947596,83631.0,83629.0,0.239149]
[1741954503501,0.33947596,83631.0,83630.0,0.00948886]
[1741954503502,0.59057796,83631.0,83630.0,0.00948886]
[1741954503789,0.59074736,83631.0,83630.0,0.00948886]
[1741954504007,0.33964536,83631.0,83629.0,0.239151]
[1741954504199,0.33964536,83631.0,83630.0,0.4174]
[1741954504403,0.59074736,83631.0,83630.0,0.4174]
[1741954504708,0.0001694,83631.0,83630.0,0.42688551]
[1741954505040,0.02073909,83631.0,83630.0,0.42688551]
[1741954505269,0.0001694,83631.0,83630.0,0.66603351]
[1741954506573,0.0001694,83631.0,83630.0,0.42688551]
[1741954506759,0.2393144,83631.0,83630.0,0.42688551]
[1741954506954,0.2512714,83631.0,83630.0,0.42688551]
[1741954507168,0.27161368,83631.0,83630.0,0.42678551]
[1741954508193,0.29036947,83631.0,83630.0,0.42678551]
[1741954508415,0.29036947,83631.0,83630.0,0.40478551]
[1741954508772,0.59036947,83631.0,83630.0,0.40478551]
[1741954508977,0.59036947,83631.0,83630.0,0.00948551]
[1741954509181,0.59036947,83631.0,83616.0,0.011959]
[1741954509182,0.239177,83621.0,83617.0,0.239185]
[1741954509384,0.239177,83620.0,83618.0,0.0095408]
[1741954509724,0.251137,83620.0,83618.0,0.0095408]
[1741954509981,0.23918,83619.0,83618.0,0.0095408]
[1741954510174,0.239186,83617.0,83615.0,0.3953]
[1741954510608,0.01875749,83620.0,83619.0,0.23918]
[1741954510810,0.539167,83624.0,83621.0,0.239172]
[1741954510991,0.3,83622.0,83620.0,0.239172]
[1741954511191,0.3,83622.0,83621.0,0.239174]